[Event "Live Chess"]
[Site "Chess.com"]
[Date "2023.05.20"]
[Round "-"]
[White "wot-not"]
[Black "Brooms1989"]
[Result "0-1"]
[WhiteElo "1465"]
[BlackElo "986"]
[TimeControl "300"]
[EndTime "10:16:16 PDT"]
[Termination "Brooms1989 won by resignation"]

1. e4 {[%clk 0:04:58.2]} 1... e5 {[%clk 0:04:59.2]} 2. f4 {[%clk 0:04:56.9]}
2... exf4 {[%clk 0:04:55.5]} 3. Nf3 {[%clk 0:04:55.7]} 3... Nc6 {[%clk
0:04:54.4]} 4. Bc4 {[%clk 0:04:54.6]} 4... Bc5 {[%clk 0:04:47.6]} 5. d4 {[%clk
0:04:52.7]} 5... Bb6 {[%clk 0:04:38.5]} 6. O-O {[%clk 0:04:51.6]} 6... Nge7
{[%clk 0:04:35.3]} 7. Bxf4 {[%clk 0:04:48.1]} 7... O-O {[%clk 0:04:32.7]} 8. c3
{[%clk 0:04:43.1]} 8... d5 {[%clk 0:04:28.4]} 9. exd5 {[%clk 0:04:36.7]} 9...
Nxd5 {[%clk 0:04:28.3]} 10. Bxd5 {[%clk 0:04:35.9]} 10... Qxd5 {[%clk
0:04:26.5]} 11. Nbd2 {[%clk 0:04:28]} 11... Bg4 {[%clk 0:04:15.3]} 12. Kh1
{[%clk 0:04:23.6]} 12... Rfe8 {[%clk 0:03:55.7]} 13. h3 {[%clk 0:04:13.4]} 13...
Bxf3 {[%clk 0:03:43.5]} 14. Qxf3 {[%clk 0:04:11]} 14... Qxf3 {[%clk 0:03:41.3]}
15. Nxf3 {[%clk 0:04:10.2]} 15... Re7 {[%clk 0:03:36.4]} 16. Rae1 {[%clk
0:04:08]} 16... Rae8 {[%clk 0:03:34.6]} 17. Rxe7 {[%clk 0:04:06.3]} 17... Rxe7
{[%clk 0:03:34.5]} 18. Re1 {[%clk 0:04:06]} 18... Rxe1+ {[%clk 0:03:29.4]} 19.
Nxe1 {[%clk 0:04:05.1]} 19... h6 {[%clk 0:03:24.6]} 20. Nd3 {[%clk 0:04:03]}
20... g5 {[%clk 0:03:23.2]} 21. Bg3 {[%clk 0:03:56.7]} 21... f5 {[%clk
0:03:21.8]} 22. Be5 {[%clk 0:03:43]} 22... Nxe5 {[%clk 0:03:19.7]} 23. Nxe5
{[%clk 0:03:42.3]} 23... Kg7 {[%clk 0:03:15.9]} 24. Kh2 {[%clk 0:03:38.8]} 24...
c5 {[%clk 0:02:55.6]} 25. d5 {[%clk 0:03:34.1]} 25... Kf6 {[%clk 0:02:51.9]} 26.
Nd7+ {[%clk 0:03:32.9]} 26... Ke7 {[%clk 0:02:49.1]} 27. Nxb6 {[%clk 0:03:31.4]}
27... axb6 {[%clk 0:02:49]} 28. Kg3 {[%clk 0:03:30.2]} 28... Kd6 {[%clk
0:02:48.4]} 29. c4 {[%clk 0:03:29.1]} 29... b5 {[%clk 0:02:46.9]} 30. b3 {[%clk
0:03:27.7]} 30... bxc4 {[%clk 0:02:45]} 31. bxc4 {[%clk 0:03:27.2]} 31... b5
{[%clk 0:02:44.3]} 32. cxb5 {[%clk 0:03:20]} 32... Kxd5 {[%clk 0:02:42.6]} 33.
h4 {[%clk 0:03:16.4]} 33... gxh4+ {[%clk 0:02:35.9]} 34. Kxh4 {[%clk 0:03:15.7]}
34... c4 {[%clk 0:02:33.6]} 35. Kh5 {[%clk 0:03:02.2]} 35... c3 {[%clk
0:02:29.7]} 36. Kxh6 {[%clk 0:03:01.9]} 36... c2 {[%clk 0:02:29]} 37. Kg5 {[%clk
0:03:01.7]} 37... c1=Q+ {[%clk 0:02:28.1]} 38. Kxf5 {[%clk 0:03:01.4]} 38...
Qc2+ {[%clk 0:02:25.5]} 0-1

[Event "Live Chess"]
[Site "Chess.com"]
[Date "2023.05.20"]
[Round "-"]
[White "IanCalvert2"]
[Black "Jeffaroow"]
[Result "1-0"]
[WhiteElo "1620"]
[BlackElo "465"]
[TimeControl "300"]
[EndTime "10:16:17 PDT"]
[Termination "IanCalvert2 won by resignation"]

1. b3 {[%clk 0:04:52.9]} 1... e5 {[%clk 0:04:58.4]} 2. Bb2 {[%clk 0:04:50.5]}
2... Nc6 {[%clk 0:04:55.6]} 3. e3 {[%clk 0:04:44.3]} 3... Nf6 {[%clk 0:04:52.7]}
4. Nf3 {[%clk 0:04:41.9]} 4... Bd6 {[%clk 0:04:48.5]} 5. d4 {[%clk 0:04:37.8]}
5... O-O {[%clk 0:04:45.2]} 6. dxe5 {[%clk 0:04:34.9]} 6... Bxe5 {[%clk
0:04:43.2]} 7. Nxe5 {[%clk 0:04:32.1]} 7... Nxe5 {[%clk 0:04:33.4]} 8. Bxe5
{[%clk 0:04:29.9]} 8... Re8 {[%clk 0:04:29.5]} 9. Bb2 {[%clk 0:04:23.8]} 9...
Ne4 {[%clk 0:04:21.3]} 10. Nd2 {[%clk 0:04:18.5]} 10... Nxd2 {[%clk 0:04:19.2]}
11. Qxd2 {[%clk 0:04:16.5]} 1-0

[Event "Live Chess"]
[Site "Chess.com"]
[Date "2023.05.20"]
[Round "-"]
[White "AwesomeFredster"]
[Black "Bot_Boy"]
[Result "1-0"]
[WhiteElo "1322"]
[BlackElo "325"]
[TimeControl "300"]
[EndTime "10:16:23 PDT"]
[Termination "AwesomeFredster won on time"]

1. e4 {[%clk 0:04:59.1]} 1... Nc6 {[%clk 0:04:56.9]} 2. Nf3 {[%clk 0:04:55.8]}
2... b6 {[%clk 0:04:52.3]} 3. d4 {[%clk 0:04:53.5]} 3... e6 {[%clk 0:04:45.8]}
4. Nc3 {[%clk 0:04:51.6]} 4... Bb4 {[%clk 0:04:39.2]} 5. Bd2 {[%clk 0:04:49.8]}
5... d5 {[%clk 0:04:31.3]} 6. e5 {[%clk 0:04:46.8]} 6... Nge7 {[%clk 0:04:22.1]}
7. a3 {[%clk 0:04:44.8]} 7... Bxc3 {[%clk 0:04:13.8]} 8. Bxc3 {[%clk 0:04:44.7]}
8... Bb7 {[%clk 0:04:06.3]} 9. Bd3 {[%clk 0:04:42.4]} 9... a5 {[%clk 0:03:57]}
10. O-O {[%clk 0:04:40]} 10... Nf5 {[%clk 0:03:34.4]} 11. Qd2 {[%clk 0:04:26.9]}
11... Ba6 {[%clk 0:03:04.2]} 12. Bxa6 {[%clk 0:04:20.3]} 12... Rxa6 {[%clk
0:03:02.2]} 13. Qd3 {[%clk 0:04:19.2]} 13... Ra7 {[%clk 0:02:13.5]} 14. Qb5
{[%clk 0:04:09]} 14... Ne7 {[%clk 0:01:47.7]} 15. b4 {[%clk 0:04:05.5]} 15...
O-O {[%clk 0:01:40.6]} 16. bxa5 {[%clk 0:04:01.4]} 16... Nxa5 {[%clk 0:01:21.3]}
17. Bb4 {[%clk 0:03:54.4]} 17... Nb7 {[%clk 0:00:45.1]} 18. Qd3 {[%clk
0:03:52.5]} 18... Re8 {[%clk 0:00:36.7]} 19. Ng5 {[%clk 0:03:50.3]} 19... g6
{[%clk 0:00:33.6]} 20. Qh3 {[%clk 0:03:47.5]} 20... h5 {[%clk 0:00:22.8]} 21.
Qf3 {[%clk 0:03:45.7]} 21... Nf5 {[%clk 0:00:19.5]} 22. Rac1 {[%clk 0:03:19]}
22... c5 {[%clk 0:00:11.4]} 23. dxc5 {[%clk 0:03:16.7]} 23... bxc5 {[%clk
0:00:09.9]} 24. Bd2 {[%clk 0:03:12.6]} 24... c4 {[%clk 0:00:04.9]} 25. Bb4
{[%clk 0:03:05.5]} 1-0

[Event "Live Chess"]
[Site "Chess.com"]
[Date "2023.05.20"]
[Round "-"]
[White "mliszewski"]
[Black "cedarsmaster"]
[Result "1-0"]
[WhiteElo "1903"]
[BlackElo "1664"]
[TimeControl "300"]
[EndTime "10:16:26 PDT"]
[Termination "mliszewski won on time"]

1. d4 {[%clk 0:04:58.3]} 1... e6 {[%clk 0:04:53.5]} 2. Nf3 {[%clk 0:04:56.5]}
2... f5 {[%clk 0:04:51.8]} 3. Bf4 {[%clk 0:04:53.8]} 3... Nf6 {[%clk 0:04:49.8]}
4. e3 {[%clk 0:04:52.9]} 4... d5 {[%clk 0:04:45.3]} 5. Nbd2 {[%clk 0:04:48.8]}
5... c6 {[%clk 0:04:44.1]} 6. Bd3 {[%clk 0:04:47.5]} 6... Bd6 {[%clk 0:04:40.3]}
7. Ne5 {[%clk 0:04:46.2]} 7... O-O {[%clk 0:04:19.9]} 8. g4 {[%clk 0:04:43.3]}
8... fxg4 {[%clk 0:04:14.5]} 9. Nxg4 {[%clk 0:04:39.2]} 9... Bxf4 {[%clk
0:04:10]} 10. exf4 {[%clk 0:04:38.2]} 10... Nbd7 {[%clk 0:03:51.4]} 11. Ne5
{[%clk 0:04:32.2]} 11... Qe8 {[%clk 0:03:17.7]} 12. Qf3 {[%clk 0:04:29.8]} 12...
Qh5 {[%clk 0:03:06.7]} 13. Qg3 {[%clk 0:04:28]} 13... Qh6 {[%clk 0:02:19.5]} 14.
O-O-O {[%clk 0:04:20.9]} 14... Nh5 {[%clk 0:02:07.1]} 15. Qh4 {[%clk 0:03:54.7]}
15... Nxf4 {[%clk 0:01:57.8]} 16. Qe7 {[%clk 0:03:39.2]} 16... Nxd3+ {[%clk
0:01:51.5]} 17. cxd3 {[%clk 0:03:38]} 17... Qf6 {[%clk 0:01:16.6]} 18. Qd6
{[%clk 0:03:24.1]} 18... Rd8 {[%clk 0:00:52.9]} 19. Rdg1 {[%clk 0:03:10.4]}
19... Nxe5 {[%clk 0:00:44.8]} 20. Qxe5 {[%clk 0:03:09.5]} 20... Qxe5 {[%clk
0:00:41.7]} 21. dxe5 {[%clk 0:03:09]} 21... Rf8 {[%clk 0:00:32.9]} 22. Rg2
{[%clk 0:03:07.7]} 22... a5 {[%clk 0:00:26.5]} 23. Rhg1 {[%clk 0:03:06.6]} 23...
Rf7 {[%clk 0:00:22.8]} 24. h4 {[%clk 0:03:04.9]} 24... a4 {[%clk 0:00:18.8]} 25.
d4 {[%clk 0:03:03.1]} 25... c5 {[%clk 0:00:12.8]} 26. Kc2 {[%clk 0:02:53.4]}
26... cxd4 {[%clk 0:00:09.5]} 27. Kd3 {[%clk 0:02:53.1]} 27... b6 {[%clk
0:00:06.7]} 28. Kxd4 {[%clk 0:02:52.6]} 28... Ba6 {[%clk 0:00:05.1]} 29. Ke3
{[%clk 0:02:47.6]} 29... Bb5 {[%clk 0:00:02.9]} 30. Nf3 {[%clk 0:02:44.1]} 30...
Rc8 {[%clk 0:00:00.8]} 31. Nd4 {[%clk 0:02:42.7]} 1-0

[Event "Live Chess"]
[Site "Chess.com"]
[Date "2023.05.20"]
[Round "-"]
[White "1600x"]
[Black "Conradical12"]
[Result "0-1"]
[WhiteElo "1404"]
[BlackElo "1530"]
[TimeControl "300"]
[EndTime "10:16:32 PDT"]
[Termination "Conradical12 won by checkmate"]

1. d4 {[%clk 0:04:51.7]} 1... Nf6 {[%clk 0:04:57.8]} 2. Nc3 {[%clk 0:04:51.6]}
2... d5 {[%clk 0:04:56.4]} 3. Nf3 {[%clk 0:04:49.3]} 3... c5 {[%clk 0:04:55.6]}
4. dxc5 {[%clk 0:04:47.5]} 4... Nc6 {[%clk 0:04:55.1]} 5. e3 {[%clk 0:04:46.3]}
5... e5 {[%clk 0:04:51.6]} 6. b4 {[%clk 0:04:43]} 6... a6 {[%clk 0:04:48]} 7. a3
{[%clk 0:04:30.8]} 7... Bf5 {[%clk 0:04:46.3]} 8. b5 {[%clk 0:04:29.2]} 8... Na5
{[%clk 0:04:40.5]} 9. h3 {[%clk 0:04:27.2]} 9... Bxc5 {[%clk 0:04:38.1]} 10.
Nxe5 {[%clk 0:04:25.8]} 10... O-O {[%clk 0:04:35.6]} 11. bxa6 {[%clk 0:04:23.8]}
11... b6 {[%clk 0:04:25.5]} 12. Nd3 {[%clk 0:04:19.6]} 12... Bxd3 {[%clk
0:04:22.2]} 13. Bxd3 {[%clk 0:04:17.8]} 13... d4 {[%clk 0:04:21.4]} 14. Ne2
{[%clk 0:04:16.3]} 14... dxe3 {[%clk 0:04:19.9]} 15. Bxe3 {[%clk 0:04:14.6]}
15... Bxe3 {[%clk 0:04:18.5]} 16. fxe3 {[%clk 0:04:13.4]} 16... Nd5 {[%clk
0:04:16.6]} 17. Qd2 {[%clk 0:04:12.1]} 17... Qh4+ {[%clk 0:04:13.1]} 18. g3
{[%clk 0:04:10.8]} 18... Qf6 {[%clk 0:04:10.5]} 19. O-O-O {[%clk 0:04:07.5]}
19... Qa1# {[%clk 0:04:08.7]} 0-1

[Event "Live Chess"]
[Site "Chess.com"]
[Date "2023.05.20"]
[Round "-"]
[White "PLZ909"]
[Black "JackRudd"]
[Result "0-1"]
[WhiteElo "1514"]
[BlackElo "2400"]
[TimeControl "300"]
[EndTime "10:16:39 PDT"]
[Termination "JackRudd won by resignation"]

1. d4 {[%clk 0:04:58.8]} 1... Nf6 {[%clk 0:04:58.5]} 2. Bf4 {[%clk 0:04:57.6]}
2... c5 {[%clk 0:04:56.5]} 3. Nf3 {[%clk 0:04:56.8]} 3... cxd4 {[%clk
0:04:55.4]} 4. Qxd4 {[%clk 0:04:53.4]} 4... Nc6 {[%clk 0:04:53.9]} 5. Qd1 {[%clk
0:04:52.1]} 5... d5 {[%clk 0:04:51.8]} 6. c3 {[%clk 0:04:51.5]} 6... Bg4 {[%clk
0:04:48.5]} 7. Nbd2 {[%clk 0:04:49.3]} 7... e6 {[%clk 0:04:47.6]} 8. e3 {[%clk
0:04:48.3]} 8... Bd6 {[%clk 0:04:46]} 9. Bg3 {[%clk 0:04:46.5]} 9... O-O {[%clk
0:04:44.6]} 10. Bd3 {[%clk 0:04:45]} 10... e5 {[%clk 0:04:42.8]} 11. h3 {[%clk
0:04:32.8]} 11... Bh5 {[%clk 0:04:41.2]} 12. O-O {[%clk 0:04:29.9]} 12... e4
{[%clk 0:04:40.1]} 13. Bb5 {[%clk 0:04:27.4]} 13... exf3 {[%clk 0:04:38.4]} 14.
Bxc6 {[%clk 0:04:27.3]} 14... fxg2 {[%clk 0:04:36]} 15. Kxg2 {[%clk 0:04:24.6]}
15... Bxd1 {[%clk 0:04:34.1]} 16. Rfxd1 {[%clk 0:04:23.4]} 16... bxc6 {[%clk
0:04:33.3]} 0-1

[Event "Live Chess"]
[Site "Chess.com"]
[Date "2023.05.20"]
[Round "-"]
[White "Chesscoach_Golichenko"]
[Black "CheckString"]
[Result "1-0"]
[WhiteElo "2647"]
[BlackElo "1297"]
[TimeControl "300"]
[EndTime "10:16:42 PDT"]
[Termination "Chesscoach_Golichenko won by resignation"]

1. d4 {[%clk 0:04:57.8]} 1... d5 {[%clk 0:04:51]} 2. Nc3 {[%clk 0:04:52.6]} 2...
Nf6 {[%clk 0:04:47.7]} 3. Bf4 {[%clk 0:04:50.4]} 3... Bf5 {[%clk 0:04:43.7]} 4.
e3 {[%clk 0:04:47.9]} 4... e6 {[%clk 0:04:39]} 5. Nf3 {[%clk 0:04:44.6]} 5...
Bb4 {[%clk 0:04:37.8]} 6. Bd3 {[%clk 0:04:41.6]} 6... Bg6 {[%clk 0:04:33.1]} 7.
O-O {[%clk 0:04:26.4]} 7... Nbd7 {[%clk 0:04:19.6]} 8. a3 {[%clk 0:04:24]} 8...
Bxc3 {[%clk 0:04:15.7]} 9. bxc3 {[%clk 0:04:23.3]} 9... c5 {[%clk 0:04:11.4]}
10. c4 {[%clk 0:04:20.1]} 10... b6 {[%clk 0:04:05.1]} 11. cxd5 {[%clk
0:04:16.4]} 11... exd5 {[%clk 0:04:04]} 12. c4 {[%clk 0:04:11.5]} 12... O-O
{[%clk 0:03:59.2]} 13. Bd6 {[%clk 0:04:05.3]} 13... Re8 {[%clk 0:03:57]} 14.
cxd5 {[%clk 0:04:04.3]} 14... Nxd5 {[%clk 0:03:55.9]} 15. dxc5 {[%clk
0:04:01.3]} 15... Nxc5 {[%clk 0:03:48.7]} 16. Bxc5 {[%clk 0:03:59.8]} 16... bxc5
{[%clk 0:03:48.6]} 17. Bxg6 {[%clk 0:03:44.1]} 17... hxg6 {[%clk 0:03:46.2]} 18.
Rc1 {[%clk 0:03:42.6]} 18... Rc8 {[%clk 0:03:44.4]} 19. Qa4 {[%clk 0:03:39.7]}
19... Nb6 {[%clk 0:03:40.4]} 20. Qxa7 {[%clk 0:03:31]} 20... Re7 {[%clk
0:03:39.7]} 21. Qa5 {[%clk 0:03:24.6]} 21... Rd7 {[%clk 0:03:16.2]} 22. Rxc5
{[%clk 0:03:21.1]} 22... Rxc5 {[%clk 0:03:13.5]} 23. Qxc5 {[%clk 0:03:21]} 23...
Nc8 {[%clk 0:03:00.3]} 24. Nd4 {[%clk 0:03:05.1]} 24... Ne7 {[%clk 0:02:47.9]}
25. a4 {[%clk 0:02:58.8]} 25... Nf5 {[%clk 0:02:45.3]} 26. Nxf5 {[%clk
0:02:57.4]} 26... gxf5 {[%clk 0:02:45.2]} 27. Qxf5 {[%clk 0:02:56.5]} 27... Rd1
{[%clk 0:02:44.2]} 28. Qc2 {[%clk 0:02:42.1]} 28... Rd2 {[%clk 0:02:37.8]} 29.
Qc4 {[%clk 0:02:38.3]} 29... Rd1 {[%clk 0:02:34.9]} 30. g3 {[%clk 0:02:23]}
30... Qd7 {[%clk 0:02:23.4]} 31. Rxd1 {[%clk 0:02:20.3]} 31... Qxd1+ {[%clk
0:02:21.9]} 32. Kg2 {[%clk 0:02:19.9]} 32... Qd8 {[%clk 0:02:18.4]} 33. e4
{[%clk 0:02:16.9]} 33... Kh8 {[%clk 0:02:14.4]} 34. Qxf7 {[%clk 0:02:13.1]} 1-0

[Event "Live Chess"]
[Site "Chess.com"]
[Date "2023.05.20"]
[Round "-"]
[White "risinghelios"]
[Black "NAZRIZ1977"]
[Result "1/2-1/2"]
[WhiteElo "1947"]
[BlackElo "2122"]
[TimeControl "300"]
[EndTime "10:16:56 PDT"]
[Termination "Game drawn by agreement"]

1. e4 {[%clk 0:04:59.1]} 1... c5 {[%clk 0:04:58.2]} 2. c3 {[%clk 0:04:56.8]}
2... d5 {[%clk 0:04:55.1]} 3. exd5 {[%clk 0:04:54]} 3... Nf6 {[%clk 0:04:53.8]}
4. d4 {[%clk 0:04:52.5]} 4... cxd4 {[%clk 0:04:51]} 5. cxd4 {[%clk 0:04:52.4]}
5... Nxd5 {[%clk 0:04:50]} 6. Nf3 {[%clk 0:04:52.2]} 6... Nc6 {[%clk 0:04:48.9]}
7. Bc4 {[%clk 0:04:51.4]} 7... Nb6 {[%clk 0:04:46.3]} 8. Bb3 {[%clk 0:04:49.5]}
8... e6 {[%clk 0:04:45.6]} 9. O-O {[%clk 0:04:48.6]} 9... Be7 {[%clk 0:04:44.8]}
10. Be3 {[%clk 0:04:47]} 10... O-O {[%clk 0:04:43.9]} 11. Nc3 {[%clk 0:04:46]}
11... Nb4 {[%clk 0:04:43.4]} 12. a3 {[%clk 0:04:44]} 12... N4d5 {[%clk
0:04:42.7]} 13. Nxd5 {[%clk 0:04:42.4]} 13... Nxd5 {[%clk 0:04:42]} 14. Bxd5
{[%clk 0:04:40.3]} 14... Qxd5 {[%clk 0:04:41.2]} 15. Rc1 {[%clk 0:04:39.5]}
15... b6 {[%clk 0:04:37.8]} 16. Ne5 {[%clk 0:04:38.6]} 16... Bb7 {[%clk
0:04:35.2]} 17. Qf3 {[%clk 0:04:35.6]} 17... Rac8 {[%clk 0:04:28.8]} 18. Qxd5
{[%clk 0:04:33.8]} 18... Bxd5 {[%clk 0:04:27.9]} 19. b4 {[%clk 0:04:29.3]} 19...
f6 {[%clk 0:04:26.5]} 20. Nf3 {[%clk 0:04:25]} 20... a5 {[%clk 0:04:22.7]} 21.
bxa5 {[%clk 0:04:22.9]} 21... bxa5 {[%clk 0:04:21.4]} 22. Bd2 {[%clk 0:04:21.8]}
22... Bxf3 {[%clk 0:04:14.8]} 23. gxf3 {[%clk 0:04:20.3]} 23... a4 {[%clk
0:04:12.3]} 24. Bb4 {[%clk 0:04:18.7]} 24... Bxb4 {[%clk 0:04:10.8]} 25. axb4
{[%clk 0:04:18.6]} 25... Rxc1 {[%clk 0:04:03.6]} 26. Rxc1 {[%clk 0:04:18.5]}
26... Ra8 {[%clk 0:04:03.1]} 27. Ra1 {[%clk 0:04:17.3]} 27... Kf7 {[%clk
0:04:01.2]} 28. Kf1 {[%clk 0:04:16.9]} 28... Ke7 {[%clk 0:04:00.6]} 29. Ke2
{[%clk 0:04:16.8]} 29... Kd6 {[%clk 0:04:00.5]} 30. Kd3 {[%clk 0:04:16.5]} 30...
Kd5 {[%clk 0:03:59.3]} 31. b5 {[%clk 0:04:11.5]} 31... a3 {[%clk 0:03:58.4]} 32.
f4 {[%clk 0:04:08.6]} 32... Ra4 {[%clk 0:03:56.7]} 33. Kc3 {[%clk 0:04:06.1]}
1/2-1/2

[Event "Live Chess"]
[Site "Chess.com"]
[Date "2023.05.20"]
[Round "-"]
[White "wadsy27"]
[Black "ACx04"]
[Result "1-0"]
[WhiteElo "2589"]
[BlackElo "433"]
[TimeControl "300"]
[EndTime "10:17:00 PDT"]
[Termination "wadsy27 won by checkmate"]

1. c4 {[%clk 0:04:58.1]} 1... d6 {[%clk 0:04:58]} 2. g3 {[%clk 0:04:56.6]} 2...
e6 {[%clk 0:04:57.1]} 3. Bg2 {[%clk 0:04:56.1]} 3... Qf6 {[%clk 0:04:55.7]} 4.
Nc3 {[%clk 0:04:55.8]} 4... e5 {[%clk 0:04:53.4]} 5. Nf3 {[%clk 0:04:53.5]} 5...
Nc6 {[%clk 0:04:50.3]} 6. d4 {[%clk 0:04:52.8]} 6... exd4 {[%clk 0:04:49.1]} 7.
Nd5 {[%clk 0:04:51.5]} 7... Qe6 {[%clk 0:04:46.2]} 8. Nxc7+ {[%clk 0:04:50.4]}
8... Kd7 {[%clk 0:04:41.2]} 9. Nxe6 {[%clk 0:04:50.3]} 9... fxe6 {[%clk
0:04:37.4]} 10. Nxd4 {[%clk 0:04:50.2]} 10... Nxd4 {[%clk 0:04:35.9]} 11. Qxd4
{[%clk 0:04:50.1]} 11... e5 {[%clk 0:04:34.8]} 12. Bh3+ {[%clk 0:04:49.4]} 12...
Kc7 {[%clk 0:04:32.8]} 13. Qh4 {[%clk 0:04:47]} 13... Be7 {[%clk 0:04:29.5]} 14.
Bg5 {[%clk 0:04:45.6]} 14... h6 {[%clk 0:04:25.6]} 15. Bxe7 {[%clk 0:04:44.5]}
15... Nxe7 {[%clk 0:04:24.5]} 16. Qxe7+ {[%clk 0:04:44.4]} 16... Bd7 {[%clk
0:04:23.3]} 17. Qxd7+ {[%clk 0:04:43.4]} 17... Kb6 {[%clk 0:04:18.1]} 18. Qxd6+
{[%clk 0:04:42.9]} 18... Ka5 {[%clk 0:04:16.2]} 19. b4+ {[%clk 0:04:42.8]} 19...
Ka4 {[%clk 0:04:13.7]} 20. Bd7+ {[%clk 0:04:42]} 20... Ka3 {[%clk 0:04:11.8]}
21. b5+ {[%clk 0:04:40.6]} 21... Kb2 {[%clk 0:04:09]} 22. Qb4+ {[%clk 0:04:37]}
22... Kxa1 {[%clk 0:04:07.6]} 23. Kd2+ {[%clk 0:04:33]} 23... Kxa2 {[%clk
0:04:06.6]} 24. Kc2 {[%clk 0:04:32]} 24... Rad8 {[%clk 0:04:03.3]} 25. Qb2#
{[%clk 0:04:31.2]} 1-0

[Event "Live Chess"]
[Site "Chess.com"]
[Date "2023.05.20"]
[Round "-"]
[White "SupremeTactician"]
[Black "Hussamalhaidar"]
[Result "1-0"]
[WhiteElo "2415"]
[BlackElo "1001"]
[TimeControl "300"]
[EndTime "10:17:02 PDT"]
[Termination "SupremeTactician won by resignation"]

1. e4 {[%clk 0:04:59.3]} 1... e5 {[%clk 0:04:57.5]} 2. Nf3 {[%clk 0:04:58.5]}
2... Nc6 {[%clk 0:04:56.2]} 3. Nc3 {[%clk 0:04:58.2]} 3... Bc5 {[%clk
0:04:52.5]} 4. Bb5 {[%clk 0:04:57.2]} 4... d6 {[%clk 0:04:47.6]} 5. Bxc6+ {[%clk
0:04:56.1]} 5... bxc6 {[%clk 0:04:46.1]} 6. d4 {[%clk 0:04:55.2]} 6... exd4
{[%clk 0:04:43.1]} 7. Nxd4 {[%clk 0:04:55.1]} 7... Bxd4 {[%clk 0:04:40.2]} 8.
Qxd4 {[%clk 0:04:54.2]} 8... Bb7 {[%clk 0:04:37]} 9. O-O {[%clk 0:04:52.3]} 9...
c5 {[%clk 0:04:34]} 10. Qd3 {[%clk 0:04:51.3]} 10... Nf6 {[%clk 0:04:30.6]} 11.
Bg5 {[%clk 0:04:47.7]} 11... O-O {[%clk 0:04:27]} 12. f4 {[%clk 0:04:44.1]}
12... h6 {[%clk 0:04:24.5]} 13. Bh4 {[%clk 0:04:43]} 13... Re8 {[%clk
0:04:20.1]} 14. Rae1 {[%clk 0:04:34.6]} 14... Re6 {[%clk 0:03:52.3]} 15. Nd5
{[%clk 0:04:14.2]} 15... Bxd5 {[%clk 0:03:43.8]} 16. exd5 {[%clk 0:04:14.1]}
16... Rxe1 {[%clk 0:03:38.3]} 17. Rxe1 {[%clk 0:04:12.4]} 17... Qd7 {[%clk
0:03:31.6]} 18. Bxf6 {[%clk 0:04:10.4]} 18... gxf6 {[%clk 0:03:29.6]} 19. Qg3+
{[%clk 0:04:10]} 19... Kh7 {[%clk 0:03:27.8]} 20. Qh4 {[%clk 0:04:09.5]} 20...
Qf5 {[%clk 0:03:20.5]} 21. Re7 {[%clk 0:03:54.1]} 21... Qxd5 {[%clk 0:02:55.9]}
22. Qxf6 {[%clk 0:03:48.1]} 22... Qd1+ {[%clk 0:02:52.6]} 23. Kf2 {[%clk
0:03:45.3]} 23... Qd2+ {[%clk 0:02:48.8]} 24. Re2 {[%clk 0:03:44.2]} 24... Qd4+
{[%clk 0:02:45.1]} 25. Qxd4 {[%clk 0:03:43.5]} 25... cxd4 {[%clk 0:02:43.9]} 26.
Re7 {[%clk 0:03:43.4]} 26... c5 {[%clk 0:02:33.9]} 27. Rxf7+ {[%clk 0:03:41.6]}
27... Kg6 {[%clk 0:02:32.8]} 28. Rd7 {[%clk 0:03:41.2]} 28... Rb8 {[%clk
0:02:29.1]} 29. b3 {[%clk 0:03:40]} 29... Kf5 {[%clk 0:02:23.2]} 30. Rxd6 {[%clk
0:03:36.7]} 30... Kxf4 {[%clk 0:02:20.9]} 31. Rxh6 {[%clk 0:03:34.1]} 31... a5
{[%clk 0:02:17.3]} 32. Rc6 {[%clk 0:03:28.5]} 32... Rb5 {[%clk 0:02:09.3]} 33.
a4 {[%clk 0:03:26]} 33... Rb7 {[%clk 0:01:56.3]} 34. Rxc5 {[%clk 0:03:24]} 34...
Rf7 {[%clk 0:01:53]} 35. Rxa5 {[%clk 0:03:18.3]} 35... Ke4+ {[%clk 0:01:51.6]}
36. Ke2 {[%clk 0:03:17.4]} 36... Rh7 {[%clk 0:01:49.6]} 37. h3 {[%clk
0:03:15.5]} 37... Rg7 {[%clk 0:01:47.4]} 38. g4 {[%clk 0:03:15.1]} 38... Rh7
{[%clk 0:01:46.1]} 39. Rh5 {[%clk 0:03:14.8]} 39... Rf7 {[%clk 0:01:43.2]} 40.
a5 {[%clk 0:03:11.8]} 40... Rf6 {[%clk 0:01:41]} 41. b4 {[%clk 0:02:47.8]} 41...
Rc6 {[%clk 0:01:38.5]} 42. Kd2 {[%clk 0:02:45.6]} 42... Kf3 {[%clk 0:01:33.4]}
43. b5 {[%clk 0:02:44.7]} 43... Rc3 {[%clk 0:01:17.6]} 44. b6 {[%clk 0:02:09.1]}
44... Rc8 {[%clk 0:00:59.7]} 45. b7 {[%clk 0:02:08.1]} 45... Rb8 {[%clk
0:00:42.9]} 46. a6 {[%clk 0:02:06.9]} 46... Kg3 {[%clk 0:00:37.8]} 47. a7 {[%clk
0:02:05.9]} 47... Rxb7 {[%clk 0:00:35.4]} 48. a8=Q {[%clk 0:02:04.2]} 1-0

[Event "Live Chess"]
[Site "Chess.com"]
[Date "2023.05.20"]
[Round "-"]
[White "Daniel_Gliddon_FA"]
[Black "Davidagye"]
[Result "1-0"]
[WhiteElo "1178"]
[BlackElo "1657"]
[TimeControl "300"]
[EndTime "10:17:07 PDT"]
[Termination "Daniel_Gliddon_FA won by resignation"]

1. e4 {[%clk 0:04:53.7]} 1... e6 {[%clk 0:04:58.5]} 2. d4 {[%clk 0:04:52.3]}
2... d5 {[%clk 0:04:57.4]} 3. exd5 {[%clk 0:04:49]} 3... exd5 {[%clk 0:04:56.2]}
4. Nf3 {[%clk 0:04:48]} 4... Nf6 {[%clk 0:04:54.6]} 5. c4 {[%clk 0:04:44.9]}
5... Bb4+ {[%clk 0:04:50.5]} 6. Bd2 {[%clk 0:04:37.9]} 6... Bxd2+ {[%clk
0:04:48.9]} 7. Qxd2 {[%clk 0:04:36.8]} 7... O-O {[%clk 0:04:48.5]} 8. cxd5
{[%clk 0:04:29.4]} 8... Re8+ {[%clk 0:04:46.8]} 9. Be2 {[%clk 0:04:24.4]} 9...
Nfd7 {[%clk 0:04:38.6]} 10. O-O {[%clk 0:04:22.4]} 10... Nb6 {[%clk 0:04:36.5]}
11. Nc3 {[%clk 0:04:18.8]} 11... Nxd5 {[%clk 0:04:34.2]} 12. Nxd5 {[%clk
0:04:16]} 12... Qxd5 {[%clk 0:04:32.8]} 13. Rfe1 {[%clk 0:04:13.1]} 13... Nc6
{[%clk 0:04:31.7]} 14. b3 {[%clk 0:04:08.1]} 14... Bg4 {[%clk 0:04:30.6]} 15. h3
{[%clk 0:04:00.3]} 15... Bh5 {[%clk 0:04:26.6]} 16. Bc4 {[%clk 0:03:49.5]} 16...
Qd6 {[%clk 0:04:14.3]} 17. Rxe8+ {[%clk 0:03:44]} 17... Rxe8 {[%clk 0:04:08.8]}
18. Ng5 {[%clk 0:03:37.7]} 18... Bg6 {[%clk 0:04:02.3]} 19. Rd1 {[%clk
0:03:26.6]} 19... h6 {[%clk 0:03:39.7]} 20. Nf3 {[%clk 0:03:11.4]} 20... Bh5
{[%clk 0:03:37.6]} 21. Qd3 {[%clk 0:02:39.2]} 21... Bg6 {[%clk 0:02:53.9]} 22.
Qd2 {[%clk 0:02:17.9]} 22... Bh5 {[%clk 0:02:40.8]} 23. Qd3 {[%clk 0:02:07.7]}
23... Bxf3 {[%clk 0:02:38.3]} 24. Qxf3 {[%clk 0:02:05.5]} 24... Nxd4 {[%clk
0:02:36.4]} 25. Qxf7+ {[%clk 0:02:02.7]} 25... Kh7 {[%clk 0:02:27.3]} 26. Bd3+
{[%clk 0:02:00.8]} 1-0